fUSD/lending_fUSD_20251225
["ID","MTS","AMOUNT","RATE_DAILY","PERIOD"]
[399813214,1766693448562,-500.0,0.00016602,2]
[399813215,1766693448572,-150.0,0.00016606,2]
[399813216,1766693448582,-150.0,0.00016613,2]
[399813217,1766693448592,-150.0,0.00016615,2]
[399813218,1766693448602,-150.0,0.00016615,2]
[399813219,1766693448612,-150.0,0.00016622,2]
[399813220,1766693448622,-500.0,0.0001663,2]
[399813221,1766693448632,-1040.65765088,0.00016633,2]
[399813222,1766693448642,-150.0,0.00016635,2]
[399813223,1766693448652,-150.0,0.00016635,2]
[399813224,1766693448662,-150.0,0.00016637,2]
[399813225,1766693448672,-150.0,0.00016639,2]
[399813226,1766693448682,-150.0,0.00016641,2]
[399813227,1766693448692,-150.0,0.00016647,2]
[399813228,1766693448703,-150.0,0.00016647,2]
[399813229,1766693448713,-150.0,0.00016654,2]
[399813230,1766693448723,-150.0,0.00016655,2]
[399813231,1766693448732,-500.0,0.00016657,2]
[399813232,1766693448743,-13809.16839756,0.0001666,2]
[399813233,1766693448753,-150.0,0.00016664,2]
[399813234,1766693448764,-150.0,0.00016668,2]
[399813235,1766693448774,-150.0,0.00016674,2]
[399813236,1766693448785,-1192.0,0.00016676,2]
[399813237,1766693448796,-150.0,0.00016677,2]
[399813238,1766693448806,-150.0,0.00016677,2]
[399813239,1766693448816,-518.80351721,0.00016685,2]
[399813240,1766693448827,-150.0,0.00016687,2]
[399813241,1766693448838,-150.0,0.00016687,2]
[399813242,1766693448848,-150.0,0.00016693,2]
[399813243,1766693448858,-150.0,0.00016693,2]
[399813244,1766693448868,-150.0,0.00016694,2]
[399813245,1766693448879,-150.0,0.00016696,2]
[399813246,1766693448889,-151.0,0.00016697,2]
[399813247,1766693448899,-595.37131296,0.00016697,2]
[399813248,1766693448909,-1000.0,0.00016706,2]
[399813249,1766693448919,-150.0,0.00016713,2]
[399813250,1766693448928,-150.0,0.00016715,2]
[399813251,1766693448939,-150.0,0.00016716,2]
[399813252,1766693448949,-150.0,0.00016721,2]
[399813253,1766693448959,-150.0,0.00016723,2]
[399813254,1766693448970,-598.60555363,0.00016731,2]
[399813255,1766693448980,-500.0,0.00016731,2]
[399813256,1766693448990,-1000.0,0.00016731,2]
[399813257,1766693449001,-349.16265713,0.00016731,2]
[399813258,1766693449011,-500.0,0.00016731,2]
[399813259,1766693449022,-1000.0,0.00016731,2]
[399813260,1766693449032,-808.61264672,0.00016731,2]
[399813261,1766693449042,-1000.0,0.00016731,2]
[399813262,1766693449052,-1000.0,0.00016731,2]
[399813263,1766693449062,-648.46173605,0.00016731,2]
[399813264,1766693449073,-1000.0,0.00016731,2]
[399813265,1766693449083,-500.0,0.00016731,2]
[399813266,1766693449094,-500.0,0.00016731,2]
[399813267,1766693449105,-1059.28446362,0.00016731,2]
[399813268,1766693449115,-650.40009762,0.00016731,2]
[399813269,1766693449125,-500.0,0.00016731,2]
[399813270,1766693449135,-1000.0,0.00016731,2]
[399813271,1766693449146,-500.0,0.00016731,2]
[399813272,1766693449156,-1000.0,0.00016731,2]
[399813273,1766693449172,-500.0,0.00016731,2]
[399813274,1766693449185,-1000.0,0.00016731,2]
[399813275,1766693449195,-1000.0,0.00016731,2]
[399813276,1766693449207,-707.3850141,0.00016731,2]
[399813277,1766693449217,-500.66742167,0.00016731,2]
[399813278,1766693449228,-1000.0,0.00016731,2]
[399813279,1766693449239,-500.0,0.00016731,2]
[399813280,1766693449250,-1000.0,0.00016731,2]
[399813281,1766693449261,-500.0,0.00016731,2]
[399813282,1766693449272,-1000.0,0.00016731,2]
[399813283,1766693449282,-500.0,0.00016731,2]
[399813284,1766693449294,-500.0,0.00016731,2]
[399813285,1766693449304,-150.0,0.00016732,2]
[399813286,1766693449314,-1000.0,0.00016735,2]
[399813287,1766693449326,-150.0,0.00016737,2]
[399813288,1766693449336,-150.0,0.00016738,2]
[399813289,1766693449348,-500.0,0.0001674,2]
[399813290,1766693449362,-692.29661032,0.00016741,2]
[399813291,1766693449372,-150.0,0.00016744,2]
[399813292,1766693449382,-150.0,0.00016747,2]
[399813293,1766693449394,-150.0,0.00016752,2]
[399813294,1766693449406,-150.0,0.00016752,2]
[399813295,1766693449416,-150.0,0.00016755,2]
[399813296,1766693449428,-150.0,0.00016772,2]
[399813297,1766693449439,-150.0,0.00016774,2]
[399813298,1766693449449,-150.0,0.00016774,2]
[399813299,1766693449461,-150.0,0.00016779,2]
[399813300,1766693449472,-150.0,0.00016781,2]
[399813301,1766693449482,-150.0,0.00016782,2]
[399813302,1766693449493,-150.0,0.00016783,2]
[399813303,1766693449505,-150.0,0.00016786,2]
[399813304,1766693449515,-150.0,0.00016786,2]
[399813305,1766693449525,-150.0,0.00016791,2]
[399813306,1766693449542,-150.0,0.00016793,2]
[399813307,1766693449553,-150.0,0.00016801,2]
[399813308,1766693449564,-150.0,0.0001681,2]
[399813309,1766693449575,-200.45994765,0.0001681,2]
[399813310,1766693449586,-150.0,0.00016811,2]
[399813311,1766693449597,-150.0,0.00016811,2]
[399813312,1766693449608,-150.0,0.00016814,2]
[399813313,1766693449619,-150.0,0.00016821,2]
[399813314,1766693449630,-1192.0,0.00016823,2]
[399813315,1766693449641,-150.0,0.00016827,2]
[399813316,1766693449652,-926.45060488,0.0001683,2]
[399813317,1766693449663,-150.0,0.0001683,2]
[399813318,1766693449675,-150.0,0.00016832,2]
[399813319,1766693449685,-150.0,0.00016832,2]
[399813320,1766693449697,-150.0,0.00016836,2]
[399813321,1766693449708,-150.0,0.0001684,2]
[399813322,1766693449719,-150.0,0.0001685,2]
[399813323,1766693449729,-150.0,0.0001685,2]
[399813324,1766693449739,-150.0,0.00016854,2]
[399813325,1766693449750,-1000.0,0.00016857,2]
[399813326,1766693449761,-300.0,0.00016858,2]
[399813327,1766693449771,-150.0,0.00016862,2]
[399813328,1766693449781,-200.0,0.00016863,2]
[399813329,1766693449792,-200.0,0.00016863,2]
[399813330,1766693449802,-200.0,0.00016864,2]
[399813331,1766693449814,-200.0,0.00016864,2]
[399813332,1766693449824,-200.0,0.00016864,2]
[399813333,1766693449835,-200.0,0.00016864,2]
[399813334,1766693449846,-200.0,0.00016864,2]
[399813335,1766693449857,-150.0,0.00016865,2]
[399813336,1766693449870,-150.0,0.00016869,2]
[399813337,1766693449880,-150.0,0.00016869,2]
[399813338,1766693449896,-150.0,0.0001687,2]
[399813339,1766693449907,-25000.0,0.00016874,3]
[399813340,1766693449918,-150.0,0.00016876,2]
[399813341,1766693449929,-150.0,0.0001688,2]
[399813342,1766693449941,-1192.0,0.00016882,2]
[399813343,1766693449951,-25000.0,0.00016882,3]
[399813344,1766693449962,-150.0,0.00016883,2]
[399813345,1766693449972,-1136.0,0.00016884,2]
[399813346,1766693449983,-150.0,0.00016886,2]
[399813347,1766693449993,-150.0,0.00016886,2]
[399813348,1766693450005,-151.0,0.00016887,2]
[399813349,1766693450016,-692.29661032,0.00016888,2]
[399813350,1766693450027,-150.0,0.00016889,2]
[399813351,1766693450039,-10000.0,0.0001689,2]
[399813352,1766693450050,-150.0,0.0001689,2]
[399813353,1766693450061,-25000.0,0.00016891,3]
[399813354,1766693450072,-1000.0,0.00016893,2]
[399813355,1766693450083,-150.0,0.00016898,2]
[399813356,1766693450094,-170.28248417,0.000169,2]
[399813357,1766693450105,-25000.0,0.000169,3]
[399813358,1766693450116,-32653.34267656,0.000169,2]
[399813359,1766693450127,-10113.0,0.000169,2]
[399813360,1766693450416,-150.0,0.00016903,2]
[399813361,1766693450427,-150.0,0.00016907,2]
[399813362,1766693450437,-150.0,0.00016908,2]
[399813363,1766693450448,-150.0,0.00016908,2]
[399813364,1766693450459,-150.0,0.00016909,2]
[399813365,1766693450470,-150.0,0.00016918,2]
[399813366,1766693450480,-150.0,0.00016928,2]
[399813367,1766693450490,-150.0,0.00016928,2]
[399813368,1766693450500,-1000.0,0.0001693,2]
[399813369,1766693450511,-150.0,0.00016933,2]
[399813370,1766693450521,-150.0,0.00016936,2]
[399813371,1766693450531,-150.0,0.00016938,2]
[399813372,1766693450541,-150.0,0.00016945,2]
[399813373,1766693450551,-290.0,0.00016947,2]
[399813374,1766693450562,-150.0,0.00016947,2]
[399813375,1766693450573,-150.0,0.00016948,2]
[399813376,1766693450583,-150.0,0.00016957,2]
[399813377,1766693450593,-3899.0,0.00016959,2]
[399813378,1766693450604,-150.0,0.0001696,2]
[399813379,1766693450614,-150.0,0.00016961,2]
[399813380,1766693450624,-150.0,0.00016967,2]
[399813381,1766693450634,-500.0,0.0001697,2]
[399813382,1766693450644,-500.0,0.0001697,2]
[399813383,1766693450654,-500.0,0.0001697,2]
[399813384,1766693450664,-500.0,0.0001697,2]
[399813385,1766693450674,-800.78551976,0.0001697,2]
[399813386,1766693450684,-500.0,0.00016973,2]
[399813387,1766693450694,-150.0,0.00016973,2]
[399813388,1766693450704,-150.0,0.00016976,2]
[399813389,1766693450714,-1747.74882944,0.00016978,2]
[399813390,1766693450724,-500.0,0.00016983,2]
[399813391,1766693450734,-195.83057642,0.00016986,2]
[399813392,1766693450745,-262.39466146,0.00016986,2]
[399813393,1766693450755,-269.96857751,0.00016986,2]
[399813394,1766693450765,-263.57511802,0.00016986,2]
[399813395,1766693450775,-171.10828189,0.00016986,2]
[399813396,1766693450785,-204.18748815,0.00016986,2]
[399813397,1766693450796,-252.8846508,0.00016986,2]
[399813398,1766693450806,-250.03401256,0.00016986,2]
[399813399,1766693450816,-199.77046782,0.00016986,2]
[399813400,1766693450827,-176.41435158,0.00016986,2]
[399813401,1766693450837,-270.36367615,0.00016986,2]
[399813402,1766693450847,-195.8030936,0.00016986,2]
[399813403,1766693450857,-284.4666085,0.00016986,2]
[399813404,1766693450867,-245.69368063,0.00016986,2]
[399813405,1766693450878,-1000.0,0.00016987,2]
[399813406,1766693450888,-4932.7573629,0.00016988,2]
[399813407,1766693450898,-2586.7791684,0.00016988,2]
[399813408,1766693450908,-627735.6451384,0.00016988,2]
[399813409,1766693450919,-3683.8357598,0.00016988,2]
[399813410,1766693450928,-1638.2249533,0.00016988,2]
[399813411,1766693450938,-134102.163417,0.00016988,2]
[399813412,1766693450948,-1747.74882944,0.0001699,2]
[399813413,1766693450958,-1747.74882944,0.0001699,2]
[399813414,1766693450968,-500.0,0.00016992,2]
[399813415,1766693450978,-543.83,0.00016992,2]
[399813416,1766693450987,-1743.4595598,0.00016993,2]
[399813417,1766693450998,-117035.5893322,0.00016993,2]
[399813418,1766693451008,-151.0,0.00016997,2]
[399813419,1766693451018,-300.0,0.00016999,2]
[399813420,1766693451028,-1060.87558749,0.00016999,5]
[399813421,1766693451037,-300.0,0.00016999,2]
[399813422,1766693451047,-300.0,0.00016999,2]
[399813423,1766693451058,-300.0,0.00016999,2]
[399813424,1766693451067,-300.0,0.00016999,2]
[399813425,1766693451077,-666.0,0.00016999,2]
[399813426,1766693451088,-500.0,0.00016999,2]
[399813427,1766693451098,-500.0,0.00016999,2]
[399813428,1766693451108,-500.0,0.00016999,2]
[399813429,1766693451118,-500.0,0.00016999,2]
[399813430,1766693451127,-500.0,0.00016999,2]
[399813431,1766693451138,-500.0,0.00016999,2]
[399813432,1766693451148,-500.0,0.00016999,2]
[399813433,1766693451158,-500.0,0.00016999,2]
[399813434,1766693451168,-500.0,0.00016999,2]
[399813435,1766693451178,-500.0,0.00016999,2]
[399813436,1766693451187,-500.0,0.00016999,2]
[399813437,1766693451197,-500.0,0.00016999,2]
[399813438,1766693451208,-500.0,0.00016999,2]
[399813439,1766693451218,-500.0,0.00016999,2]
[399813440,1766693451227,-500.0,0.00016999,2]
[399813441,1766693451238,-590.60167877,0.00016999,2]
[399813442,1766693451248,-248.50634661,0.00016999,2]
[399813443,1766693451258,-543.83,0.00016999,2]
[399813444,1766693451268,-543.83,0.00016999,2]
[399813445,1766693451278,-543.83,0.00016999,2]
[399813446,1766693451288,-543.83,0.00016999,2]
[399813447,1766693451298,-543.83,0.00016999,2]
[399813448,1766693451307,-543.83,0.00016999,2]
[399813449,1766693451319,-543.83,0.00016999,2]
[399813450,1766693451328,-543.83,0.00016999,2]
[399813451,1766693451338,-543.83,0.00016999,2]
[399813452,1766693451348,-543.83,0.00016999,2]
[399813453,1766693451359,-543.83,0.00016999,2]
[399813454,1766693451370,-543.83,0.00016999,2]
[399813455,1766693451380,-543.83,0.00016999,2]
[399813456,1766693451390,-543.83,0.00016999,2]
[399813457,1766693451400,-543.83,0.00016999,2]
[399813458,1766693451409,-543.83,0.00016999,2]
[399813459,1766693451419,-543.83,0.00016999,2]
[399813460,1766693451430,-544.05,0.00016999,2]
[399813461,1766693451439,-666.0,0.00016999,2]
[399813462,1766693451449,-431783.81097376,0.00017,2]
[399813463,1766693451468,-907.96447581,0.00017,2]
[399813464,1766693451479,-7028.84508125,0.00017,2]
[399813465,1766693451491,-2323065.91352525,0.00017,2]
[399813466,1766693451501,-1965438.19531688,0.00017,2]
[399813467,1766693451511,-233.72,0.00017,7]
[399813468,1766693451520,-487947.91062421,0.00017,2]
[399813469,1766693451549,-90138.42393929,0.00017,2]
[399813470,1766693452230,-321.45865313,0.00013698,2]
[399813471,1766693452240,-143.62821649,0.00016515,2]
[399813472,1766693452276,-6390.37178351,0.00016515,2]
[399813473,1766693452286,-8670.75589354,0.00017,2]
[399813474,1766693452297,-3061.93040317,0.00017,2]
[399813475,1766693452861,-151.0,0.00015842,2]
[399813476,1766693452871,-151.0,0.00015978,2]
[399813477,1766693452880,-151.0,0.00015978,2]
[399813478,1766693452890,-15929.54989279,0.00017,2]
[399813479,1766693452987,-6949.27646979,0.00017,2]
[399813480,1766693453001,-4277.3454413,0.00017,2]
[399813481,1766693453012,-1004.86603967,0.00017,2]
[399813482,1766693453024,-10264.48088164,0.00017,2]
[399813483,1766693453036,-6652.16,0.00017,2]
[399813484,1766693453057,-503.26943875,0.00017,2]
[399813485,1766693453068,-411.999998,0.00017,2]
[399813486,1766693453080,-43654.94940584,0.00017,2]
[399813487,1766693453091,-2074.74606667,0.00017,2]
[399813488,1766693453103,-488.34862549,0.00017,2]
[399813489,1766693453277,-10691.91630598,0.00017,2]
[399813490,1766693453298,-1074.08152458,0.00017,2]
[399813491,1766693534788,396765.652976,0.00032876,120]
[399813497,1766694167036,999.0,0.00013948,3]
[399813510,1766694532408,-339.74924202,0.00012246,2]
[399813511,1766694535121,-317.14084097,0.00012246,2]
[399813530,1766694631581,-511.061172,0.00012215,2]
[399813532,1766694631591,-380.88812859,0.00012246,2]
[399813533,1766694631601,-195.0,0.00012277,2]
[399813534,1766694631610,-195.0,0.00012308,2]
[399813535,1766694631620,-195.0,0.00012354,2]
[399813536,1766694631629,-300.0,0.00012551,2]
[399813537,1766694631639,-1200.0,0.00012551,2]
[399813538,1766694631649,-300.0,0.00012551,2]
[399813539,1766694631659,-300.0,0.00012551,2]
[399813540,1766694631669,-150.0,0.00012551,2]
[399813541,1766694631678,-207.4,0.00012552,2]
[399813542,1766694631688,-151.0,0.00012552,2]
[399813543,1766694631698,-151.0,0.00012552,2]
[399813544,1766694631708,-151.0,0.00012552,2]
[399813545,1766694631717,-151.0,0.00012552,2]
[399813546,1766694631727,-151.0,0.00012552,2]
[399813547,1766694631737,-151.0,0.00012552,2]
[399813548,1766694631747,-151.0,0.00012552,2]
[399813549,1766694631757,-151.0,0.00012552,2]
[399813550,1766694631767,-151.0,0.00012552,2]
[399813551,1766694631776,-151.0,0.00012552,2]
[399813552,1766694631786,-151.0,0.00012552,2]
[399813553,1766694631799,-500.0,0.00012552,2]
[399813555,1766694631808,-500.0,0.00012552,2]
[399813557,1766694631818,-500.0,0.00012552,2]
[399813559,1766694631830,-615.40475298,0.00012552,2]
[399813561,1766694631842,-500.0,0.00012559,2]
[399813563,1766694631851,-504.53160775,0.00012559,2]
[399813565,1766694631862,-500.0,0.00012559,2]
[399813567,1766694631872,-500.0,0.00012559,2]
[399813569,1766694631882,-500.0,0.00012559,2]
[399813571,1766694631892,-500.0,0.00012559,2]
[399813573,1766694631902,-500.0,0.00012559,2]
[399813575,1766694631913,-500.0,0.00012559,2]
[399813577,1766694631924,-500.0,0.00012559,2]
[399813579,1766694631934,-500.0,0.00012559,2]
[399813581,1766694631944,-349.82491572,0.00012559,2]
[399813583,1766694631954,-1000.0,0.0001256,2]
[399813585,1766694631964,-33508.6748,0.0001256,2]
[399813587,1766694631974,-250.0,0.00013437,2]
[399813589,1766694631984,-195.0,0.00013471,2]
[399813591,1766694631994,-250.0,0.00013471,2]
[399813593,1766694632004,-195.0,0.00013504,2]
[399813595,1766694632014,-255.0,0.00013643,2]
[399813597,1766694632023,-1000.0,0.00013699,2]
[399813599,1766694632034,-11443.58,0.00013729,2]
[399813601,1766694632043,-420.0,0.00013771,2]
[399813603,1766694632053,-420.0,0.00013771,2]
[399813605,1766694632063,-1680.0,0.00013807,2]
[399813607,1766694632073,-708.1,0.0001387,2]
[399813609,1766694632082,-500.0,0.00013878,2]
[399813611,1766694632092,-1000.0,0.00013896,2]
[399813613,1766694632102,-3240.0,0.00013976,2]
[399813615,1766694632112,-200.0,0.00014039,2]
[399813617,1766694632122,-948.01,0.00014064,2]
[399813619,1766694632131,-173.95,0.00014507,2]
[399813621,1766694632141,-154.93,0.0001451,2]
[399813623,1766694632151,-166.68,0.0001456,2]
[399813625,1766694632161,-4024.22,0.00014631,2]
[399813627,1766694632171,-250.0,0.00014923,2]
[399813630,1766694632182,-587.0,0.00015109,2]
[399813632,1766694632193,-180.0,0.00015109,2]
[399813634,1766694632203,-2351.0,0.00015187,2]
[399813636,1766694632213,-151.0,0.00015201,2]
[399813637,1766694632224,-151.0,0.00015201,2]
[399813640,1766694632234,-151.0,0.00015212,2]
[399813641,1766694632243,-150.0,0.00015288,2]
[399813643,1766694632253,-150.0,0.00015288,2]
[399813645,1766694632263,-150.0,0.00015288,2]
[399813648,1766694632273,-150.0,0.00015288,2]
[399813650,1766694632284,-150.0,0.00015288,2]
[399813651,1766694632294,-150.0,0.00015288,2]
[399813653,1766694632303,-150.0,0.00015288,2]
[399813655,1766694632313,-150.0,0.00015288,2]
[399813657,1766694632323,-150.0,0.00015288,2]
[399813659,1766694632333,-150.0,0.00015288,2]
[399813661,1766694632342,-150.0,0.00015288,2]
[399813663,1766694632353,-150.0,0.00015288,2]
[399813665,1766694632363,-150.0,0.00015288,2]
[399813667,1766694632373,-150.0,0.00015288,2]
[399813669,1766694632383,-150.0,0.00015288,2]
[399813671,1766694632393,-215.0738,0.00015291,2]
[399813673,1766694632402,-150.0,0.00015377,2]
[399813675,1766694632412,-604.65,0.00015377,2]
[399813677,1766694632422,-150.0,0.00015418,2]
[399813679,1766694632431,-150.0,0.00015429,2]
[399813681,1766694632442,-150.0,0.00015466,2]
[399813683,1766694632452,-150.0,0.000155,2]
[399813685,1766694632461,-150.0,0.000155,2]
[399813687,1766694632471,-150.0,0.0001553,2]
[399813689,1766694632481,-150.0,0.00015549,2]
[399813691,1766694632490,-150.0,0.00015556,2]
[399813693,1766694632500,-150.0,0.00015571,2]
[399813695,1766694632510,-500.0,0.00015577,2]
[399813697,1766694632520,-150.0,0.00015627,2]
[399813699,1766694632530,-1000.0,0.00015633,2]
[399813701,1766694632539,-150.0,0.00015645,2]
[399813703,1766694632549,-150.0,0.0001568,2]
[399813705,1766694632559,-150.0,0.00015712,2]
[399813707,1766694632568,-150.0,0.00015712,2]
[399813709,1766694632578,-150.0,0.00015712,2]
[399813711,1766694632588,-150.0,0.00015735,2]
[399813713,1766694632598,-150.0,0.00015773,2]
[399813715,1766694632608,-150.0,0.0001581,2]
[399813717,1766694632617,-150.0,0.00015824,2]
[399813719,1766694632627,-243.9865342,0.00015844,2]
[399813722,1766694632637,-496.30491224,0.00015844,2]
[399813723,1766694632646,-177.72761324,0.00015844,2]
[399813725,1766694632655,-8729.85373566,0.00015845,2]
[399813727,1766694632669,-5802.63988552,0.00015845,2]
[399813729,1766694632678,-150.0,0.00015854,2]
[399813731,1766694632689,-150.0,0.00015854,2]
[399813733,1766694632698,-150.0,0.00015854,2]
[399813735,1766694632708,-150.0,0.00015858,2]
[399813737,1766694632717,-604.26924485,0.000159,2]
[399813740,1766694632736,-345.231887,0.000159,2]
[399813743,1766694632752,-485.20056195,0.000159,2]
[399813745,1766694632761,-2500.0,0.000159,2]
[399813747,1766694632771,-50.79943804,0.00015903,2]
[399813750,1766694632794,-3875.8766436,0.00015903,2]
[399813752,1766694632805,-63.37821046,0.00015903,2]
[399813754,1766694632815,-150.0,0.00015913,2]
[399813756,1766694632825,-150.0,0.00015925,2]
[399813758,1766694632838,-150.0,0.00015925,2]
[399813760,1766694632848,-150.0,0.00015941,2]
[399813762,1766694632857,-579.44329365,0.00015945,2]
[399813764,1766694632871,-324.98920754,0.00015945,2]
[399813767,1766694632883,-806.80112719,0.00015945,2]
[399813816,1766694637685,-873.44857162,0.00015945,2]
[399813817,1766694637697,-67559.9205,0.00015945,2]
[399813818,1766694637707,-304.31974472,0.00015945,2]
[399813819,1766694637718,-174.21218052,0.00015945,2]
[399813820,1766694637730,-188.17872434,0.00015945,2]
[399813821,1766694637742,-150.0,0.00015949,2]
[399813822,1766694637752,-14532.49362118,0.00015962,2]
[399813823,1766694637762,-150.0,0.00015967,2]
[399813824,1766694637772,-150.0,0.00015995,2]
[399813825,1766694637782,-1000.0,0.00016,2]
[399813826,1766694637792,-5266.01532672,0.00016,2]
[399813827,1766694637859,-570.96484523,0.00016,2]
[399813828,1766694637873,-604.0,0.00016,2]
[399813829,1766694637884,-334.71861101,0.00016,2]
[399813830,1766694637895,-90.18448814,0.00016,2]
[399813831,1766694637906,-385.73246896,0.00016,2]
[399813832,1766694637918,-27248.08636569,0.00016,2]
[399813834,1766694637930,-2203.65862758,0.00016,2]
[399813837,1766694637949,-166922.66208473,0.00016,2]
[399813839,1766694637960,-611.79223266,0.00016,2]
[399813840,1766694637970,-19487.56396424,0.00016,4]
[399813854,1766694639753,-913.63599195,0.00016,4]
[399813855,1766694639815,-1003.32959622,0.00016,4]
[399813856,1766694639919,-435.88463301,0.00016,4]
[399813857,1766694639931,-354.53810429,0.00016,4]
[399813858,1766694639975,-123837.066431,0.00016,4]
[399813859,1766694639985,-150.0,0.00016003,2]
[399813860,1766694639994,-3990.05429207,0.00016014,2]
[399813861,1766694640004,-150.0,0.00016016,2]
[399813862,1766694640013,-151.0,0.00016042,2]
[399813863,1766694640022,-1434.70169376,0.00016043,2]
[399813864,1766694640032,-500.0,0.00016044,2]
[399813865,1766694640041,-715.31,0.00016044,2]
[399813866,1766694640051,-715.31,0.00016044,2]
[399813867,1766694640060,-715.31,0.00016044,2]
[399813868,1766694640070,-715.31,0.00016044,2]
[399813869,1766694640079,-1000000.0,0.00016045,2]
[399813870,1766694640090,-150.0,0.00016072,2]
[399813871,1766694640100,-14532.49362118,0.00016079,2]
[399813872,1766694640109,-150.0,0.00016092,2]
[399813873,1766694640118,-304.31974468,0.00016104,2]
[399813874,1766694640128,-9999.99,0.00016116,2]
[399813875,1766694640139,-150.99,0.00016116,2]
[399813876,1766694640149,-6503.45,0.00016116,2]
[399813877,1766694640159,-150.99,0.00016116,2]
[399813878,1766694640169,-3990.05429207,0.00016125,2]
[399813879,1766694640179,-150.0,0.00016137,2]
[399813880,1766694640189,-150.0,0.00016137,2]
[399813881,1766694640198,-150.0,0.00016137,2]
[399813882,1766694640207,-150.0,0.00016137,2]
[399813883,1766694640217,-150.0,0.00016137,2]
[399813884,1766694640227,-715.31,0.00016144,2]
[399813885,1766694640236,-115252.43,0.00016145,2]
[399813886,1766694640246,-1863.66254373,0.00016149,2]
[399813887,1766694640256,-322.6107,0.00016149,2]
[399813888,1766694640265,-151.0,0.00016149,2]
[399813889,1766694640275,-574.12855637,0.00016149,2]
[399813890,1766694640285,-500.0,0.00016149,2]
[399813891,1766694640295,-500.0,0.00016149,2]
[399813893,1766694640304,-500.0,0.00016149,2]
[399813895,1766694640314,-3610.92924073,0.00016149,2]
[399813897,1766694640325,-500.0,0.00016149,2]
[399813898,1766694640335,-250.0,0.00016149,2]
[399813900,1766694640345,-500.0,0.00016149,2]
[399813901,1766694640355,-250.0,0.00016149,2]
[399813902,1766694640365,-500.0,0.00016149,2]
[399813903,1766694640374,-500.0,0.00016149,2]
[399813904,1766694640384,-250.0,0.00016149,2]
[399813905,1766694640393,-500.0,0.00016149,2]
[399813906,1766694640403,-500.0,0.00016149,2]
[399813907,1766694640412,-250.0,0.00016149,2]
[399813908,1766694640422,-500.0,0.00016149,2]
[399813909,1766694640431,-500.0,0.00016149,2]
[399813910,1766694640441,-250.0,0.00016149,2]
[399813911,1766694640450,-500.0,0.00016149,2]
[399813912,1766694640460,-500.0,0.00016149,2]
[399813913,1766694640469,-250.0,0.00016149,2]
[399813914,1766694640479,-500.0,0.00016149,2]
[399813915,1766694640488,-500.0,0.00016149,2]
[399813916,1766694640498,-250.0,0.00016149,2]
[399813917,1766694640507,-500.0,0.00016149,2]
[399813918,1766694640516,-250.0,0.00016149,2]
[399813919,1766694640526,-500.0,0.00016149,2]
[399813920,1766694640535,-250.0,0.00016149,2]
[399813921,1766694640545,-500.0,0.00016149,2]
[399813922,1766694640554,-500.0,0.00016149,2]
[399813923,1766694640564,-250.0,0.00016149,2]
[399813924,1766694640573,-250.0,0.00016149,2]
[399813925,1766694640583,-500.0,0.00016149,2]
[399813926,1766694640594,-500.0,0.00016149,2]
[399813927,1766694640603,-250.0,0.00016149,2]